{"text_format":"1","workbook":"xlsx","n_sheets":2,"sheets":["Normal oversigt","Beregninger"],"not_rendered":{"charts":0,"images":1,"macros":1,"external_links":0,"defined_names":1,"comments":1,"pivot_tables":0},"unopened":[],"bounds":{"document_bytes":16777216,"sheet_cells":100000,"rows_first":2000,"rows_last":500,"rows_between":2000,"halvings":0,"cell_chars":16384,"cell_head_chars":4096},"cells_cut":0,"cells_raw":0,"read":"whole","date_system":"1900"}

{"sheet":"Normal oversigt","index":0,"n_rows":81,"n_cols":8,"rows_kept":81,"cut":false,"hidden":false,"merged":[[65,5,65,7],[66,5,66,7],[60,5,60,7],[61,5,61,7],[62,5,62,7],[37,5,37,7],[38,5,38,7],[59,5,59,7],[49,5,49,7],[50,5,50,7],[46,5,46,7],[51,5,51,7],[55,5,55,7],[56,5,56,7],[57,5,57,7],[58,5,58,7],[52,5,52,7],[53,5,53,7],[54,5,54,7],[36,5,36,7],[44,5,44,7],[45,5,45,7],[43,0,43,4],[48,0,48,4],[40,0,40,4],[41,0,41,4],[42,0,42,4],[39,0,39,4],[39,5,39,7],[40,5,40,7],[41,5,41,7],[42,5,42,7],[43,5,43,7],[47,5,47,7],[48,5,48,7],[58,0,58,4],[59,0,59,4],[49,0,49,4],[50,0,50,4],[51,0,51,4],[56,0,56,4],[57,0,57,4],[31,0,31,4],[32,0,32,4],[33,0,33,4],[34,0,34,4],[35,5,35,7],[35,0,35,4],[31,5,31,7],[32,5,32,7],[33,5,33,7],[34,5,34,7],[29,2,29,3],[29,4,29,5],[29,6,29,7],[30,2,30,5],[30,6,30,7],[27,0,27,3],[27,4,27,5],[27,6,27,7],[28,0,28,3],[28,4,28,5],[28,6,28,7],[25,0,25,3],[25,4,25,5],[25,6,25,7],[26,0,26,3],[26,4,26,5],[26,6,26,7],[23,4,23,5],[23,6,23,7],[24,0,24,3],[24,4,24,5],[24,6,24,7],[23,0,23,3],[20,0,20,3],[20,4,20,5],[20,6,20,7],[18,4,18,5],[18,6,18,7],[19,0,19,3],[19,4,19,5],[19,6,19,7],[21,0,21,3],[21,4,21,5],[21,6,21,7],[22,0,22,3],[22,4,22,5],[22,6,22,7]]}
[]
[]
[]
[]
[]
[]
["Elev type:"]
["Feriepenge",0.125,null,null,"Samlet opsparing",null,5.6000000000000001E-2]
["Løn ½. År",{"$f":"Beregninger!C46","v":2552},"Kr/uge",null,"Løn 3. år",null,{"$f":"Beregninger!C48","v":3523},"Kr/uge"]
["Løn 2. år",{"$f":"Beregninger!C47","v":2950},"Kr/uge",null,"Løn 4. år",null,{"$f":"Beregninger!C49","v":4237},"Kr/uge"]
["Forsikring per elev",4600,"kr/år",null,"Bogpakke 1. skoleoph.",null,1500,"kr."]
["Befordringsgodtgørelse",100,"kr/uge*",null,"Antal uger praktik",null,{"$f":"IF(Beregninger!C41=6,0,Beregninger!C41)","v":126},"Uger"]
["Udgifter Skolehjem",500,"kr/uge",null,"Antal uger skole",null,{"$f":"Beregninger!C36","v":56},"Uger"]
["Refusion Skolehjem",500,"kr/uge",null,"Pension",null,{"$f":"Beregninger!C50","v":5.0999999999999997E-2}]
["Sundhedsforsikring",{"$f":"Beregninger!C51","v":0},"kr/mnd"]
[]
[]
[]
[null,null,null,null,"Refusion/tilskud",null,"Udgifter"]
["Lønudgift praktik og skole periode",null,null,null,null,null,{"$f":"(Beregninger!C41+Beregninger!C36)*Beregninger!C42","v":465920}]
["Ferietillæg",null,null,null,null,null,{"$f":"G20*B8","v":58240}]
["Pension",null,null,null,null,null,{"$f":"G20*Beregninger!C43","v":1323212800}]
["Refusion for skole periode",null,null,null,{"$f":"Beregninger!C36*Beregninger!C37","v":336}]
["Forsikring",null,null,null,null,null,{"$f":"B11","v":4600}]
["Udgifter skolehjem",null,null,null,null,null,{"$f":"Beregninger!C36*B13","v":28000}]
["Refusion skolehjem",null,null,null,{"$f":"Beregninger!C36*B14","v":28000}]
["Løntilskud for vokse over 25 år EUV 2 og 3 elever",null,null,null,{"$f":"B15*Beregninger!C41*37","v":0}]
["Befordringsgodtgørelse",null,null,null,null,null,{"$f":"B12*Beregninger!C36","v":5600}]
["Bogpakke",null,null,null,null,null,{"$f":"VLOOKUP(Beregninger!B3,Beregninger!A5:J28,12, FALSE)","v":{"$error":"#REF!"}}]
[null,null,"I alt kr.:",null,{"$f":"SUM(E20:F29)","v":28336},null,{"$f":"SUM(G20:H29)","v":{"$error":"#REF!"}}]
[null,null,"Periodens udgift",null,null,null,{"$f":"G30-E30","v":{"$error":"#REF!"}}]
["Bruttoudgift ½. år",null,null,null,null,{"$f":"(Beregninger!D46+(Beregninger!D46*G8)+(Beregninger!D46*B8))*(1+G14)+B11+(B12*Beregninger!C32)+(B15*6)+G11","v":90458.159311999989}]
["Tilskud ½. år",null,null,null,null,{"$f":"Beregninger!D42","v":51200}]
["Nettoudgift ½. år",null,null,null,null,{"$f":"F32-F33","v":39258.159311999989}]
["Total udgift i skoletid minus refusion",null,null,null,null,{"$f":"(((G20+G21+G22)/(Beregninger!C41+Beregninger!C36))*Beregninger!C36)-E23+G28+G29","v":{"$error":"#REF!"}}]
["Gns. per måned ½. år",null,null,null,null,{"$f":"F34/6","v":6543.0265519999984}]
["Gns. per time ½. år",null,null,null,null,{"$f":"F36/160.33","v":40.809745849186044}]
["Gns. udgift per måned fordelt på praktikperiode alt incl.",null,null,null,null,{"$f":"(F34/(Beregninger!C38-4))*4.33","v":5151.1463582109072}]
["Gns. udgift per time fordelt på praktikperiode alt incl.",null,null,null,null,{"$f":"F38/160.33","v":32.128399913995551}]
[]
["Bruttoudgift 2. år",null,null,null,null,{"$f":"(Beregninger!D47+(Beregninger!D47*G8)+(Beregninger!D47*B8))*(1+G14)+B11+(B12*Beregninger!C33)+(B15*12)","v":196504.83539999998}]
["Tilskud 2. år",null,null,null,null,{"$f":"Beregninger!D43","v":42600}]
["Nettoudgift 2. år",null,null,null,null,{"$f":"F41-F42","v":153904.83539999998}]
["Gns. per måned 2. år",null,null,null,null,{"$f":"F43/12","v":12825.402949999998}]
["Gns. per time 2. år",null,null,null,null,{"$f":"F44/160.33","v":79.993781263643712}]
["Gns. udgift per måned fordelt på praktikperiode alt incl.",null,null,null,null,{"$f":"(F43/(Beregninger!C38-8))*4.33","v":22979.584044206895}]
["Gns. udgift per time fordelt på praktikperiode alt incl.",null,null,null,null,{"$f":"F46/160.33","v":143.32678877444579}]
[]
["Bruttoudgift 3. år",null,null,null,null,{"$f":"(Beregninger!D48+(Beregninger!D48*G8)+(Beregninger!D48*B8))*(1+G14)+B11+(B12*Beregninger!C34)+(B15*12)","v":232788.55427599998}]
["Tilskud 3. år",null,null,null,null,{"$f":"Beregninger!D44","v":25600}]
["Nettoudgift 3. år",null,null,null,null,{"$f":"F49-F50","v":207188.55427599998}]
["Gns. per måned 3. år",null,null,null,null,{"$f":"F51/12","v":17265.712856333332}]
["Gns. per time 3. år",null,null,null,null,{"$f":"F52/160.33","v":107.68859761949311}]
["Gns. udgift per måned fordelt på praktikperiode alt incl.",null,null,null,null,{"$f":"(F51/(Beregninger!C39-8))*4.33","v":24920.178889307776}]
["Gns. udgift per time fordelt på praktikperiode alt incl.",null,null,null,null,{"$f":"F54/160.33","v":155.43054256413507}]
[]
["Bruttoudgift 4. år",null,null,null,null,{"$f":"(Beregninger!D49+(Beregninger!D49*G8)+(Beregninger!D49*B8))*(1+G14)+B11+(B12*Beregninger!C35)+(B15*12)","v":279372.97884399997}]
["Tilskud 4. år",null,null,null,null,{"$f":"Beregninger!D45","v":48880}]
["Nettoudgift 4. år",null,null,null,null,{"$f":"F57-F58","v":230492.97884399997}]
["Gns. per måned 4. år OBS kun 6 mnd.",null,null,null,null,{"$f":"F59/12","v":19207.748236999996}]
["Gns. per time 4. år",null,null,null,null,{"$f":"F60/160.33","v":119.80133622528531}]
["Gns. udgift per måned fordelt på praktikperiode alt incl.",null,null,null,null,{"$f":"(F59/(Beregninger!C40-8))*4.33","v":32194.664464339348}]
["Gns. udgift per time fordelt på praktikperiode alt incl.",null,null,null,null,{"$f":"F62/160.33","v":200.8024977505105}]
[]
[]
["Gennemsnits pris per time arbejde",null,null,null,null,{"$f":"((F34+F43+F51+F59)/(G12-28))/37","v":173.97808268946491}]
["Forudsætninger:"]
["*Befordringsgodtgørelse 80% af billigste offentlig transport refunderet estimat."]
["AUB refusion er beregnet med 2018 tal for alle år."]
["Ugeløn og pension under skole og praktik ophold er beregnet for hele året selvom dette reguleres pr. 1. marts"]
["Krav til forsikring iht overenskomst"]
["Ny mesterlære: Eleven er det første uddannelsesår i praktik."]
["Skurpenge:"]
["Hvis forsvarligt skur- eller opholdsrum ikke anvises, ydes et dagligt beløb på 50,55 kr."]
["regnet fra den lønningsuge hvor kravet stilles."]
["Pr. 1. marts 2018 udgør satsen 53,02 kr. og pr. 1. marts 2019 er satsen 53,02 kr."]
["Pensionsbidraget er beregnet af den samlede ferieberettigede løn, opsparing inkl. ferietillæg,"]
["fritvalgsopsparing samt feriepenge."]
["Gns. udgift per måned fordelt på praktikperiode alt incl. Det vil sige per år er fratrukket "]
["6 ugers ferie og 2 ugers søgnehelligdage og fridage."]
["Evt. udgift til studietur 3000 kr."]

{"sheet":"Beregninger","index":1,"n_rows":51,"n_cols":20,"rows_kept":51,"cut":false,"hidden":false,"merged":[]}
[]
[]
[null,2]
[null,"Elev type","Varighed skole år 1 (uger)","Varighed skole år 2 (uger)","Varighed skole år 3 (uger)","Varighed skole år 4 (uger)","Varighed praktik år 1 (uger)","Varighed praktik år 2 (uger)","Varighed praktik år 3 (uger)","Varighed praktik år 4 (uger)","AUB refusion år 1","AUB refusion år 2","AUB refusion år 3","AUB refusion år 4","Løn år 1","Løn år 2","Løn år 3","Løn år 4","pension","sundheds-forsikring"]
[1,"Under 20 år med uddannelsesaftale",20,15,8,13,6,37,44,39,2560,2840,3200,3760,2552,2950,3523,4237,0,33]
[2,"Mellem 20 og 25 år med uddannelsesaftale",20,15,8,13,6,37,44,39,2560,2840,3200,3760,2552,2950,3523,4237,5.0999999999999997E-2,0]
[3,"Ny mesterlære under 20 år",4,15,8,13,22,37,44,39,2560,2840,3200,3760,2552,2950,3523,4237,0,33]
[4,"Ny mesterlære mellem 20 og 25 år",4,15,8,13,22,37,44,39,2560,2840,3200,3760,2552,2950,3523,4237,5.0999999999999997E-2,0]
[5]
[6]
[7]
[8]
[9]
[10]
[11]
[12]
[13]
[14]
[15]
[16]
[17]
[18]
[19]
[20]
[21]
[22]
[23]
[24]
[25]
[]
[null,null,null,"Årlig udgift /indtægt"]
[null,"1. år skole",{"$f":"VLOOKUP(Beregninger!B3,Beregninger!A5:T29,3, FALSE)","v":20}]
[null,"2. år skole",{"$f":"VLOOKUP(Beregninger!B3,Beregninger!A5:T29,4, FALSE)","v":15}]
[null,"3. år skole",{"$f":"VLOOKUP(Beregninger!B3,Beregninger!A5:T29,5, FALSE)","v":8}]
[null,"4. år skole",{"$f":"VLOOKUP(Beregninger!B3,Beregninger!A5:T29,6, FALSE)","v":13}]
[null,"Valgt varighed skole",{"$f":"(VLOOKUP(Beregninger!B3,Beregninger!A5:T29,3, FALSE)+VLOOKUP(Beregninger!B3,Beregninger!A5:T29,4, FALSE)+VLOOKUP(Beregninger!B3,Beregninger!A5:T29,5, FALSE)+VLOOKUP(Beregninger!B3,Beregninger!A5:T29,6, FALSE))","v":56}]
[null,"1. år praktik",{"$f":"VLOOKUP(Beregninger!B3,Beregninger!A5:T29,7, FALSE)","v":6}]
[null,"2. år praktik",{"$f":"VLOOKUP(Beregninger!B3,Beregninger!A5:T29,8, FALSE)","v":37}]
[null,"3. år praktik",{"$f":"VLOOKUP(Beregninger!B3,Beregninger!A5:T29,9, FALSE)","v":44}]
[null,"4. år praktik",{"$f":"VLOOKUP(Beregninger!B3,Beregninger!A5:T29,10, FALSE)","v":39}]
[null,"Valgt varighed praktik",{"$f":"(VLOOKUP(Beregninger!B3,Beregninger!A5:T29,7, FALSE)+VLOOKUP(Beregninger!B3,Beregninger!A5:T29,8, FALSE)+VLOOKUP(Beregninger!B3,Beregninger!A5:T29,9, FALSE)+VLOOKUP(Beregninger!B3,Beregninger!A5:T29,10, FALSE))","v":126}]
[null,"AUB refusion år 1",{"$f":"VLOOKUP(Beregninger!B3,Beregninger!A5:T29,11, FALSE)","v":2560},{"$f":"C42*C32","v":51200}]
[null,"AUB refusion år 2",{"$f":"VLOOKUP(Beregninger!B3,Beregninger!A5:T29,12, FALSE)","v":2840},{"$f":"C43*C33","v":42600}]
[null,"AUB refusion år 3",{"$f":"VLOOKUP(Beregninger!B3,Beregninger!A5:T29,13, FALSE)","v":3200},25600]
[null,"AUB refusion år 4",{"$f":"VLOOKUP(Beregninger!B3,Beregninger!A5:T29,14, FALSE)","v":3760},48880]
[null,"Løn år1",{"$f":"VLOOKUP(Beregninger!B3,Beregninger!A5:T29,15, FALSE)","v":2552},{"$f":"C46*26","v":66352}]
[null,"Løn år2",{"$f":"VLOOKUP(Beregninger!B3,Beregninger!A5:T29,16, FALSE)","v":2950},{"$f":"C47*52","v":153400}]
[null,"Løn år3",{"$f":"VLOOKUP(Beregninger!B3,Beregninger!A5:T29,17, FALSE)","v":3523},{"$f":"C48*52","v":183196}]
[null,"løn år4",{"$f":"VLOOKUP(Beregninger!B3,Beregninger!A5:T29,18, FALSE)","v":4237},220324]
[null,"pension",{"$f":"VLOOKUP(Beregninger!B3,Beregninger!A5:T29,19, FALSE)","v":5.0999999999999997E-2}]
[null,"sundhedsforsikring",{"$f":"VLOOKUP(Beregninger!B3,Beregninger!A5:T29,20, FALSE)","v":0}]